bitfinex-derivatives/quotes_ETHF0:USTF0_20241229
["timestamp","ask_amount","ask_price","bid_price","bid_amount"]
[1735506874607,5.12358003,3358.3,3357.9,0.2984]
[1735506874608,3.81228502,3358.1,3357.9,0.2984]
[1735506874923,0.2984,3358.1,3357.9,0.2984]
[1735506875111,3.51388502,3358.2,3357.8,0.4284]
[1735506875312,3.81227502,3358.2,3358.0,0.2984]
[1735506876210,3.51388502,3358.2,3357.8,0.4284]
[1735506876419,3.51388502,3358.2,3358.1,3.50619]
[1735506876620,2.25280033,3358.8,3358.2,0.29838]
[1735506876621,0.29836,3358.5,3358.2,0.29838]
[1735506876821,5.76668535,3358.8,3358.3,0.446]
[1735506876822,0.29837,3358.4,3358.3,0.446]
[1735506877037,0.29837,3358.4,3358.3,0.8951]
[1735506879924,2.25280033,3358.5,3358.1,3.2078]
[1735506879925,0.29838,3358.2,3358.1,3.2078]
[1735506881316,0.29833,3358.8,3358.1,3.50619]
[1735506881520,0.29837,3358.4,3358.1,3.50619]
[1735506882117,0.29838,3358.3,3358.1,3.50619]
[1735506882514,0.29836,3358.5,3358.2,0.29838]
[1735506882721,0.29837,3358.4,3358.2,0.29838]
[1735506884421,2.25280033,3358.8,3358.1,3.2078]
[1735506884722,0.29835,3358.6,3358.5,3.2078]
[1735506885125,4.36954767,3359.0,3358.5,3.2078]
[1735506885421,4.68006356,3359.2,3358.5,3.2078]
[1735506885422,0.2983,3359.2,3358.9,0.29832]
[1735506885625,5.762848,3359.4,3359.1,3.2078]
[1735506885923,5.762848,3359.4,3358.5,0.4502]
[1735506885924,0.29833,3358.8,3358.7,3.2078]
[1735506889124,0.29831,3359.0,3358.8,0.29833]
[1735506889629,5.46060033,3359.5,3358.7,3.2078]
[1735506889922,0.29833,3358.9,3358.7,3.50614]
[1735506892434,0.29833,3358.9,3358.8,0.29833]
[1735506893727,5.46060033,3359.5,3358.8,0.29833]
[1735506894030,0.29832,3359.0,3358.8,0.29833]
[1735506894724,0.29832,3359.0,3358.5,0.9145]
[1735506894926,0.2983,3359.2,3358.9,0.29831]
[1735506895131,0.29831,3359.1,3358.9,0.29831]
[1735506895430,0.29831,3359.1,3359.0,0.429]
[1735506898125,5.46060033,3359.5,3359.0,0.429]
[1735506898331,0.2983,3359.2,3359.0,0.72731]
[1735506898834,5.46060033,3359.5,3359.0,0.429]
[1735506899032,0.2983,3359.1,3359.0,0.429]
[1735506904339,0.29829,3359.3,3359.1,0.2983]
[1735506904539,0.29829,3359.3,3359.2,0.4392]
[1735506904937,0.29829,3359.3,3359.2,3.647]
[1735506906139,0.29829,3359.3,3359.2,3.2078]
[1735506912936,1.60004,3359.7,3359.0,0.429]
[1735506913250,0.29826,3359.6,3359.2,3.2078]
[1735506913544,0.29828,3359.4,3359.3,0.426]
[1735506920054,0.29829,3359.3,3359.2,3.2078]
[1735506921352,0.29829,3359.3,3359.2,1.8134]
[1735506921353,5.29829,3359.3,3359.2,1.8134]
[1735506921551,0.29829,3359.3,3359.2,1.8134]
[1735506922366,4.25595373,3359.3,3359.2,1.8134]
[1735506922559,9.25595373,3359.3,3359.2,1.8134]
[1735506923960,0.29834,3358.7,3358.6,3.2078]
[1735506924160,2.55114033,3358.7,3358.6,3.2078]
[1735506924358,2.55114033,3358.7,3358.5,4.63118248]
[1735506924359,0.29835,3358.6,3358.5,4.63118248]
[1735506924559,0.72015,3358.6,3358.5,4.63118248]
[1735506925355,5.72015,3358.6,3358.5,3.08498248]
[1735506925562,5.72015,3358.6,3358.5,0.92280034]
[1735506925753,0.29841,3357.9,3357.8,0.24260034]
[1735506925954,3.73821033,3357.9,3357.8,0.24260034]
[1735506927567,0.29844,3357.6,3357.5,0.4194]
[1735506927766,0.29844,3357.6,3357.5,3.6272]
[1735506931471,1.187,3357.9,3357.5,3.6272]
[1735506931679,1.187,3357.9,3357.8,0.29842]
[1735506931680,0.4897,3357.9,3357.8,0.29842]
[1735506931875,0.4897,3357.9,3357.5,3.6272]
[1735506932075,0.4897,3357.9,3357.7,0.29842]
[1735506932573,0.4897,3357.9,3357.8,0.4435]
[1735506933675,6.64460033,3358.5,3357.8,0.4435]
[1735506933881,6.64460033,3358.5,3357.9,0.4394]
[1735506934074,0.2984,3358.0,3357.9,3.6472]
[1735506936378,3.43680033,3358.5,3357.9,3.6472]
[1735506936579,3.43680033,3358.5,3357.9,3.94561]
[1735506936877,0.29837,3358.4,3358.1,0.29839]
[1735506937173,0.29837,3358.4,3358.2,0.4373]
[1735506937475,0.29837,3358.4,3358.3,3.2078]
[1735506937665,0.29835,3358.6,3358.4,0.29837]
[1735506937867,2.34427874,3358.7,3358.5,0.4509]
[1735506937868,0.29834,3358.7,3358.5,0.4509]
[1735506938282,1.184,3358.9,3358.5,0.4509]
[1735506938675,0.29834,3358.8,3358.5,0.74925]
[1735506939075,2.34427874,3359.0,3358.5,0.4509]
[1735506939275,0.29833,3358.9,3358.5,0.4509]
[1735506939478,0.29833,3358.9,3358.7,0.29834]
[1735506939777,0.29832,3359.0,3358.8,0.434]
[1735506940078,0.29832,3359.0,3358.8,0.8697]
[1735506940278,0.2983,3359.2,3358.9,0.29832]
[1735506940480,0.29829,3359.3,3359.0,0.29831]
[1735506940778,0.29829,3359.3,3359.1,0.4238]
[1735506941877,0.29829,3359.3,3359.1,0.7221]
[1735506942977,0.29829,3359.3,3359.1,0.4238]
[1735506944575,3.2078,3359.6,3359.1,0.4238]
[1735506944779,3.2078,3359.6,3359.2,3.2078]
[1735506944979,3.50606,3359.6,3359.3,0.29828]
[1735506945176,3.50606,3359.6,3359.4,0.4396]
[1735506945683,3.50606,3359.6,3359.4,0.73788]
[1735506946487,3.50606,3359.6,3359.4,0.4396]
[1735506946782,3.50606,3359.6,3359.4,0.73787]
[1735506946783,3.2078,3359.6,3359.4,0.73787]
[1735506947474,3.2078,3359.6,3359.5,0.29827]
[1735506948279,4.59707907,3360.3,3359.5,0.29827]
[1735506948475,3.50603,3360.0,3359.7,0.29825]
[1735506948680,0.29823,3359.9,3359.8,0.4425]
[1735506952182,0.29827,3359.5,3359.4,0.4396]
[1735506952387,0.29827,3359.5,3359.4,0.8613]
[1735506953475,3.2078,3360.0,3359.4,0.8613]
[1735506953476,0.29825,3359.8,3359.4,0.8613]
[1735506953685,3.2078,3360.0,3359.7,0.29825]
[1735506953883,0.29823,3359.9,3359.8,0.4373]
[1735506956485,3.50603,3360.0,3359.8,0.4373]
[1735506956686,0.29823,3359.9,3359.8,0.4373]
[1735506958083,3.2078,3360.0,3359.8,0.4373]
[1735506958285,3.50603,3360.0,3359.8,0.4373]
[1735506958591,2.70720033,3360.6,3359.9,3.2078]
[1735506958786,2.70720033,3360.6,3360.0,0.8837]
[1735506958988,2.25280033,3360.3,3359.9,3.2078]
[1735506959299,0.29822,3360.0,3359.9,3.2078]
[1735506959590,0.4243,3360.2,3359.8,0.4373]
[1735506959791,0.29823,3359.9,3359.8,0.4373]
[1735506961087,0.4618,3360.1,3359.5,3.2078]
[1735506961289,0.29826,3359.6,3359.5,3.2078]
[1735506962886,2.99837033,3360.0,3359.4,1.18197]
[1735506962887,0.29827,3359.5,3359.4,1.18197]
[1735506963186,0.29827,3359.6,3359.5,0.29826]
[1735506965998,0.29827,3359.5,3359.4,4.38977]
[1735506967896,2.55107033,3359.5,3359.4,3.2078]
[1735506968192,0.29832,3358.9,3358.8,0.4342]
[1735506969001,0.29834,3358.7,3358.6,7.38788005]
[1735506969198,0.29834,3358.7,3358.6,6.95658005]
[1735506970301,0.29834,3358.7,3358.6,10.16438005]
[1735506970500,0.29834,3358.7,3358.6,3.2078]
[1735506971790,1.48132,3359.0,3358.7,0.29834]
[1735506972000,0.29833,3358.9,3358.6,3.50614]
[1735506972501,1.183,3359.0,3358.8,0.29832]
[1735506972696,0.29826,3359.6,3358.8,2.25280033]
[1735506972899,5.85033874,3359.7,3359.4,0.29827]
[1735506973102,5.85033874,3359.7,3359.5,0.8967]
[1735506973403,0.29826,3359.6,3359.5,1.3574]
[1735506975295,1.183,3359.8,3359.5,4.5652]
[1735506975502,0.29826,3359.7,3359.5,4.86347]
[1735506976704,1.183,3359.8,3359.5,4.5652]
[1735506976901,0.29826,3359.7,3359.5,4.5652]
[1735506977603,0.29824,3359.9,3359.8,0.29824]
[1735506977901,0.29824,3359.9,3359.7,0.29825]
[1735506978704,0.29824,3359.9,3359.7,3.50605]
[1735506980002,0.2982,3360.3,3359.7,3.50605]
[1735506980204,0.29824,3359.9,3359.7,3.50605]
[1735506980397,3.2078,3360.5,3359.7,3.2078]
[1735506980600,0.29822,3360.1,3359.9,0.29823]
[1735506980805,3.2078,3360.5,3359.7,3.2078]
[1735506981005,0.2982,3360.3,3360.1,0.29821]
[1735506981202,0.2982,3360.3,3360.2,1.3067]
[1735506981402,0.2982,3360.4,3360.2,1.3067]
[1735506981699,0.2982,3360.3,3360.2,1.3067]
[1735506983101,3.2078,3360.5,3360.2,1.3067]
[1735506983309,3.50599,3360.5,3360.2,1.6049]
[1735506984001,0.29819,3360.4,3360.2,1.3067]
[1735506984715,2.34427874,3360.8,3360.2,1.3067]
[1735506984905,0.2982,3360.3,3360.2,1.3067]
[1735506986104,0.29821,3360.2,3360.1,3.2078]
[1735506986308,0.29823,3359.9,3359.8,6.95658005]
[1735506987509,0.29824,3359.8,3359.7,4.093]
[1735506989006,0.29824,3359.8,3359.7,3.2078]
[1735506990304,2.55104033,3359.8,3359.7,3.2078]
[1735506990503,2.55104033,3359.8,3359.3,6.95658005]
[1735506990504,0.29828,3359.4,3359.3,6.95658005]
[1735506991310,0.29829,3359.3,3359.2,6.95658005]
[1735506993004,7.06410033,3359.5,3358.9,3.2078]
[1735506993005,0.29831,3359.0,3358.9,3.2078]
[1735506994706,7.06410033,3359.5,3358.9,3.50612]
[1735506994707,0.29831,3359.1,3358.9,3.50612]
[1735506996608,3.2078,3359.5,3358.9,3.2078]
[1735506996811,0.2983,3359.2,3359.0,0.29831]
[1735506997205,0.2983,3359.2,3359.1,0.4196]
[1735506997706,2.34427874,3359.7,3359.6,0.29826]
[1735506997906,2.34427874,3359.7,3359.6,3.50606]
[1735506998110,2.35059686,3359.9,3359.8,0.29824]
[1735506998310,2.35059686,3359.9,3359.8,2.55104033]
[1735506998717,0.29821,3360.2,3360.0,0.29822]
[1735506998910,0.29821,3360.2,3360.1,3.2078]
[1735507000207,5.10466356,3360.6,3359.7,3.50605]
[1735507000415,0.29824,3359.8,3359.7,12.78149006]
[1735507001217,0.74549,3360.4,3359.7,12.78149006]
[1735507001420,0.29824,3359.9,3359.7,12.78149006]
[1735507001620,0.29824,3359.9,3359.7,3.50605]
[1735507002121,2.25280033,3360.4,3359.7,3.2078]
[1735507002416,0.29824,3359.8,3359.7,3.2078]
[1735507004420,0.4632,3360.0,3359.7,3.2078]
[1735507004611,0.29823,3360.0,3359.8,0.29824]
[1735507004812,0.4632,3360.3,3359.7,3.2078]
[1735507005008,0.4632,3360.3,3360.2,3.2078]
[1735507005214,0.7614,3360.3,3360.2,3.2078]
[1735507005619,0.29821,3360.2,3360.1,3.2078]
[1735507008616,2.69340033,3360.7,3360.1,3.2078]
[1735507008819,0.29819,3360.4,3360.2,0.9037]
[1735507009823,0.29819,3360.4,3360.2,1.3478]
[1735507010625,0.4576,3360.6,3360.2,1.3478]
[1735507010826,0.29818,3360.6,3360.4,0.29818]
[1735507013418,0.29819,3360.4,3360.3,3.2078]
[1735507014825,0.29819,3360.5,3360.3,3.506]
[1735507015022,0.29818,3360.6,3360.4,0.29818]
[1735507015228,0.4406,3360.7,3360.4,0.29818]
[1735507015229,0.73877,3360.7,3360.4,0.29818]
[1735507015426,0.73877,3360.7,3360.5,0.4358]
[1735507016021,0.29817,3360.6,3360.5,0.4358]
[1735507016324,0.29818,3360.6,3360.4,0.29819]
[1735507016525,0.29819,3360.4,3360.3,3.2078]
[1735507016921,0.29819,3360.4,3360.3,3.506]
[1735507017627,0.29819,3360.4,3360.3,3.2078]
[1735507019524,0.29819,3360.4,3360.3,3.506]
[1735507019828,0.29819,3360.4,3360.3,3.2078]
[1735507022430,2.55099033,3360.4,3360.3,3.2078]
[1735507023327,0.29822,3360.0,3359.9,3.2078]
[1735507023932,0.74722,3360.0,3359.9,3.2078]
[1735507024122,0.74722,3360.0,3359.5,6.95361648]
[1735507024329,0.29826,3359.6,3359.5,6.95361648]
[1735507024631,0.74559,3359.9,3359.4,3.2078]
[1735507024632,0.29827,3359.5,3359.4,3.2078]
[1735507030434,2.70860033,3359.8,3359.0,7.39551648]
[1735507030435,0.2983,3359.1,3359.0,7.39551648]
[1735507031922,0.2983,3359.1,3359.0,0.4419]
[1735507032134,0.29831,3359.0,3358.9,3.2078]
[1735507032531,0.29833,3358.8,3358.7,7.83101648]
[1735507033437,0.29833,3358.8,3358.7,0.8774]
[1735507035232,2.25280033,3359.2,3358.4,3.2078]
[1735507035442,0.29836,3358.5,3358.4,3.2078]
[1735507039741,0.29835,3358.6,3358.4,3.50616]
[1735507040439,0.29835,3358.6,3358.4,3.2078]
[1735507040942,0.4447,3358.7,3358.4,3.2078]
[1735507041240,0.29836,3358.5,3358.4,3.2078]
[1735507045229,0.4447,3358.7,3358.4,3.2078]
[1735507045433,0.29836,3358.5,3358.4,3.2078]
[1735507046639,0.2984,3358.0,3357.9,0.4438]
[1735507046940,0.29841,3357.9,3357.8,3.6705]
[1735507047137,0.74961,3357.9,3357.8,3.6705]
[1735507047340,0.74961,3357.9,3357.8,3.2078]
[1735507048137,3.00241033,3357.9,3357.8,3.2078]
[1735507049747,0.74608,3357.7,3357.4,3.2078]
[1735507049942,0.29845,3357.5,3357.4,3.2078]
[1735507051439,0.29846,3357.3,3357.2,0.9267]
[1735507051640,0.29846,3357.4,3357.2,1.22517]
[1735507052241,3.2078,3357.8,3357.5,0.29845]
[1735507052533,3.2078,3357.8,3357.7,3.2078]
[1735507052534,0.29842,3357.8,3357.7,3.2078]
[1735507052940,0.29842,3357.8,3357.7,3.6503]
[1735507054744,0.29842,3357.8,3357.7,0.4425]
[1735507055044,0.29842,3357.8,3357.7,3.94873]
[1735507055644,3.2078,3358.5,3357.7,3.6503]
[1735507055844,0.29838,3358.3,3358.2,3.50618]
[1735507056746,5.13663,3358.9,3358.2,3.2078]
[1735507056945,0.29837,3358.4,3358.3,0.74077]
[1735507057346,3.2078,3358.9,3358.3,0.4424]
[1735507057645,0.29835,3358.6,3358.3,0.4424]
[1735507057842,0.29835,3358.6,3358.5,0.29836]
[1735507060946,0.29835,3358.6,3358.5,3.50616]
[1735507061343,0.29835,3358.6,3358.5,0.29836]
[1735507061549,1.19137,3359.2,3358.7,0.29833]
[1735507061550,0.4456,3359.2,3358.7,0.29833]
[1735507061741,2.25280033,3359.7,3358.9,3.2078]
[1735507061742,3.2078,3359.7,3358.9,3.2078]
[1735507061947,0.2983,3359.2,3359.1,0.2983]
[1735507063562,0.2983,3359.2,3359.0,0.4317]
[1735507063563,0.2983,3359.1,3359.0,0.4317]
[1735507067352,0.2983,3359.1,3359.0,0.73001]
[1735507067659,0.2983,3359.1,3359.0,0.4317]
[1735507068258,0.2983,3359.1,3359.0,0.73001]
[1735507069163,0.2983,3359.1,3359.0,0.4317]
[1735507069759,6.36970033,3359.7,3358.9,3.2078]
[1735507069760,0.29831,3359.0,3358.9,3.2078]
[1735507069962,0.72091,3359.0,3358.9,3.2078]
[1735507070160,0.29831,3359.0,3358.9,3.2078]
[1735507070658,0.29831,3359.0,3358.9,3.50612]
[1735507070867,0.29826,3359.6,3359.2,0.29829]
[1735507071058,0.29828,3359.4,3359.3,0.4517]
[1735507071460,3.6633,3359.7,3359.3,0.4517]
[1735507071660,0.29827,3359.5,3359.4,0.29827]
[1735507071860,0.29827,3359.5,3359.4,4.40147]
[1735507073965,0.29827,3359.5,3359.4,4.1032]
[1735507075563,0.4555,3359.7,3359.4,3.2078]
[1735507075762,0.29827,3359.5,3359.4,3.2078]
[1735507079766,6.182,3359.5,3358.9,3.2078]
[1735507079967,6.182,3359.5,3358.6,4.62349942]
[1735507079968,5.46060033,3359.0,3358.6,4.62349942]
[1735507080167,0.29834,3358.7,3358.6,4.62349942]
[1735507081073,0.29835,3358.6,3358.4,0.29837]
[1735507081369,1.3162,3358.9,3358.3,3.2078]
[1735507081370,0.29836,3358.5,3358.3,3.50617]
[1735507082569,0.29835,3358.6,3358.4,0.29837]
[1735507083168,0.29834,3358.7,3358.5,0.29836]
[1735507083376,0.4467,3358.9,3358.7,0.29833]
[1735507083571,0.4467,3358.9,3358.8,1.3318]
[1735507084171,0.29831,3359.1,3358.9,0.29832]
[1735507084372,0.2983,3359.2,3358.9,0.29832]
[1735507084572,0.29831,3359.0,3358.9,0.29832]
[1735507085268,0.8647,3359.3,3359.1,0.2983]
[1735507085269,0.2983,3359.2,3359.1,0.2983]
[1735507086266,0.29831,3359.1,3359.0,0.29831]
[1735507086473,0.29832,3358.9,3358.8,1.3318]
[1735507087376,0.8647,3359.3,3358.8,1.3318]
[1735507087577,0.29831,3359.1,3359.0,0.29831]
[1735507089276,0.29832,3359.0,3358.9,0.29832]
[1735507090182,0.8647,3359.3,3359.0,0.29831]
[1735507090183,0.29831,3359.1,3359.0,0.29831]
[1735507091178,0.29832,3358.9,3358.8,1.63013]
[1735507091373,0.8647,3359.3,3358.8,1.3318]
[1735507091573,0.29831,3359.1,3358.9,0.29832]
[1735507092679,0.29831,3359.0,3358.9,0.29832]
[1735507093676,0.29832,3358.9,3358.8,1.3318]
[1735507093875,0.29832,3358.9,3358.8,1.63013]
[1735507094577,0.8647,3359.3,3358.8,1.3318]
[1735507095076,0.29832,3359.0,3358.9,0.29832]
[1735507096586,0.29832,3358.9,3358.8,1.63013]
[1735507096882,0.29833,3358.8,3358.7,7.83129942]
[1735507097885,0.29833,3358.8,3358.7,4.62349942]
[1735507098379,2.25280033,3359.0,3358.4,4.62349942]
[1735507098577,0.29836,3358.5,3358.4,4.62349942]
[1735507099886,0.29838,3358.2,3358.1,4.62349942]
[1735507101789,0.29835,3358.6,3358.5,0.29836]
[1735507101986,0.29835,3358.6,3358.1,4.62349942]
[1735507101987,0.29834,3358.8,3358.7,0.29834]
[1735507102185,3.4934787,3358.9,3358.8,0.29833]
[1735507102386,3.4934787,3358.9,3358.7,0.8808]
[1735507102582,0.29833,3358.8,3358.7,1.17914]
[1735507103392,3.4934787,3359.0,3358.7,0.8808]
[1735507103592,3.4934787,3359.0,3358.9,3.50612]
[1735507104096,0.2983,3359.1,3359.0,0.29831]
[1735507105187,0.29831,3359.0,3358.9,3.2078]
[1735507105588,0.29831,3359.0,3358.9,10.16141648]
[1735507105991,0.29831,3359.1,3358.9,10.45972648]
[1735507106192,0.2983,3359.1,3358.9,10.45972648]
[1735507106591,0.29831,3359.1,3358.9,10.45972648]
[1735507106990,0.29831,3359.0,3358.9,10.45972648]
[1735507107194,0.29831,3359.0,3358.9,10.16141648]
[1735507107491,0.29831,3359.0,3358.9,3.2078]
[1735507107904,0.29831,3359.0,3358.9,3.50612]
[1735507108900,0.29831,3359.0,3358.9,8.13896273]
[1735507109302,0.29831,3359.0,3358.9,7.84064273]
[1735507111006,0.29831,3359.0,3358.9,3.2078]
[1735507112111,0.29831,3359.0,3358.9,7.84064273]
[1735507112701,0.29831,3359.0,3358.9,4.63284273]
[1735507114103,0.29832,3358.9,3358.8,4.63284273]
[1735507115309,0.4299,3359.0,3358.7,4.63284273]
[1735507115607,0.29833,3358.8,3358.7,4.63284273]
[1735507116911,0.29833,3358.8,3358.7,4.93118273]
[1735507117308,0.29833,3358.8,3358.7,0.29834]
[1735507118403,0.29833,3358.8,3358.7,11.37109719]
[1735507118812,0.29831,3359.1,3359.0,0.29831]
[1735507119004,0.7375,3359.2,3359.1,0.2983]
[1735507119308,0.7375,3359.2,3359.1,1.1814]
[1735507119508,0.7375,3359.2,3359.1,1.6015]
[1735507119814,0.7375,3359.2,3359.1,1.3032]
[1735507120019,0.7375,3359.2,3359.1,12.37595719]
[1735507120911,0.7375,3359.2,3359.1,11.49285719]
[1735507121320,0.7375,3359.2,3359.1,4.53924071]
[1735507122717,0.7375,3359.2,3359.1,0.4201]
[1735507125316,0.7375,3359.2,3359.1,5.05775613]
[1735507126520,0.7375,3359.2,3359.1,4.54234514]
[1735507129220,0.7375,3359.2,3359.1,4.12224514]
[1735507129424,0.7375,3359.2,3359.1,11.07586162]
[1735507130924,0.2983,3359.1,3359.0,4.64104525]
[1735507132723,0.2983,3359.1,3359.0,4.93935525]
[1735507134228,0.2983,3359.1,3359.0,16.90424024]
[1735507135733,0.2983,3359.1,3359.0,7.62880018]
[1735507137022,0.2983,3359.1,3359.0,16.90424024]
[1735507137724,0.2983,3359.1,3359.0,16.60593024]
[1735507138028,0.2983,3359.1,3359.0,7.33049018]
[1735507138228,0.2983,3359.1,3359.0,4.12269018]
[1735507139932,3.2078,3359.4,3359.0,4.64188722]
[1735507140127,0.2983,3359.1,3359.0,4.64188722]
[1735507147647,0.2983,3359.1,3359.0,4.128949]
[1735507150238,2.34326494,3359.3,3359.0,4.128949]
[1735507150425,2.34326494,3359.3,3359.2,3.5061]
[1735507150938,2.34326494,3359.3,3359.2,3.9675]
[1735507152136,0.29827,3359.6,3359.5,0.29827]
[1735507152738,0.4426,3359.8,3359.5,0.29826]
[1735507152739,0.29825,3359.7,3359.5,0.29826]
[1735507152939,0.29825,3359.7,3359.6,3.6648]
[1735507153844,0.29825,3359.7,3359.6,3.96306]
[1735507154238,2.34326494,3360.1,3359.6,3.6648]
[1735507154442,0.29825,3359.8,3359.7,1.15295]
[1735507154740,0.29825,3359.8,3359.7,0.8547]
[1735507155337,0.29825,3359.8,3359.7,11.94228877]
[1735507159437,0.29825,3359.8,3359.7,5.49105519]
[1735507162345,0.29825,3359.8,3359.7,4.63635519]
[1735507162543,1.17843,3360.2,3359.6,7.84415519]
[1735507162544,0.29825,3359.7,3359.6,7.84415519]
[1735507162746,0.73015,3359.7,3359.6,7.84415519]
[1735507163843,2.79636494,3360.3,3359.6,8.28705519]
[1735507164044,0.29822,3360.0,3359.8,0.29824]
[1735507164448,2.34326494,3359.9,3359.8,0.29824]
[1735507165749,0.2982,3360.3,3360.2,0.29821]
[1735507166453,0.2982,3360.3,3360.2,1.17781]
[1735507167053,0.2982,3360.3,3360.2,0.8796]
[1735507167451,0.2982,3360.3,3360.2,5.5063567]
[1735507169756,0.2982,3360.3,3360.2,0.8796]
[1735507171446,0.29819,3360.4,3360.3,0.29819]
[1735507172151,0.29818,3360.5,3360.3,0.29819]
[1735507173155,0.2982,3360.3,3360.2,1.1778]
[1735507173367,0.29819,3360.4,3360.2,1.1778]
[1735507174960,0.4621,3360.8,3360.2,1.1778]
[1735507175156,0.2982,3360.3,3360.2,1.1778]
[1735507175655,0.2982,3360.3,3360.2,1.6324]
[1735507178062,0.2982,3360.3,3360.2,1.3342]
[1735507178958,0.2982,3360.3,3360.2,1.63241]
[1735507179659,0.29816,3360.8,3360.7,0.29816]
[1735507179961,0.29814,3361.0,3360.8,0.29815]
[1735507180161,2.34326494,3361.2,3360.9,0.8905]
[1735507180459,0.29814,3361.0,3360.9,0.8905]
[1735507180655,0.4224,3361.3,3360.8,0.4302]
[1735507180863,0.29814,3360.9,3360.8,0.4302]
[1735507182255,0.29816,3360.7,3360.6,3.2078]
[1735507184062,0.29816,3360.8,3360.7,0.29816]
[1735507184457,0.4224,3361.3,3360.6,3.2078]
[1735507184661,0.29813,3361.1,3361.0,3.2078]
[1735507195173,0.4426,3361.3,3361.0,5.46060033]
[1735507195474,0.29812,3361.3,3361.2,0.29812]
[1735507195773,0.29812,3361.2,3361.1,1.19232]
[1735507197872,0.29807,3361.8,3361.7,0.29807]
[1735507198081,0.29807,3361.8,3361.7,2.55087033]
[1735507198272,0.29805,3362.0,3361.9,0.29805]
[1735507198473,0.29804,3362.1,3362.0,0.75125]
[1735507198674,0.29804,3362.1,3362.0,3.00405033]
[1735507201781,0.29804,3362.1,3362.0,3.12560033]
[1735507201985,0.29803,3362.2,3362.1,0.29803]
[1735507202880,0.29804,3362.1,3362.0,3.12560033]
[1735507203681,0.458,3362.5,3361.9,3.2078]
[1735507203682,0.29805,3362.0,3361.9,3.2078]
[1735507203979,3.5058,3362.6,3362.5,0.298]
[1735507204176,0.29801,3362.5,3362.4,0.29801]
[1735507204383,0.29801,3362.5,3362.4,0.71981]
[1735507205084,0.29801,3362.5,3362.4,0.4218]
[1735507206379,3.2078,3362.6,3361.9,3.6653]
[1735507206571,0.29805,3362.0,3361.9,3.2078]
[1735507209080,0.74506,3362.3,3361.9,3.2078]
[1735507209377,0.29805,3362.0,3361.9,3.2078]
[1735507210688,0.4427,3362.4,3361.9,3.2078]
[1735507210883,0.29803,3362.3,3362.2,0.29803]
[1735507211077,3.2078,3362.6,3362.0,2.25280033]
[1735507211286,0.4582,3362.7,3362.6,0.29799]
[1735507211287,0.459,3362.7,3362.6,0.29799]
[1735507211583,0.75699,3362.7,3362.6,0.29799]
[1735507211787,3.6478,3363.0,3362.6,3.2078]
[1735507211788,0.29798,3362.8,3362.6,3.2078]
[1735507211981,0.44,3363.0,3362.6,3.2078]
[1735507212183,0.29799,3362.7,3362.6,3.50579]
[1735507212688,0.74484,3363.3,3362.6,3.50579]
[1735507212889,0.29798,3362.8,3362.6,3.50579]
[1735507213388,0.74484,3363.3,3362.6,3.50579]
[1735507213687,0.29799,3362.7,3362.6,3.50579]
[1735507214283,0.29798,3362.8,3362.7,0.29798]
[1735507214485,0.29794,3363.2,3362.6,3.50579]
[1735507214677,0.29799,3362.7,3362.6,3.50579]
[1735507214978,0.74484,3363.3,3362.6,3.50579]
[1735507215180,0.29799,3362.7,3362.6,3.50579]
[1735507216085,0.29799,3362.7,3362.6,3.2078]
[1735507228902,0.298,3362.6,3362.5,3.2078]
[1735507230401,0.29805,3362.0,3361.9,8.2722567]
[1735507230593,0.29805,3362.0,3361.9,3.6455]
[1735507230796,0.29805,3362.0,3361.9,3.2078]
[1735507232701,0.29809,3361.5,3361.4,4.0943]
[1735507232889,0.29809,3361.6,3361.4,4.0943]
[1735507233298,0.29809,3361.6,3361.5,0.29809]
[1735507234103,0.4223,3361.9,3361.4,4.0943]
[1735507234397,0.29806,3361.9,3361.8,3.50587]
[1735507234606,0.29806,3361.9,3361.8,3.2078]
[1735507237195,0.29806,3361.9,3361.8,3.6715]
[1735507237397,0.29806,3361.9,3361.8,3.96957]
[1735507238193,0.29805,3362.0,3361.9,0.29806]
[1735507238395,3.2078,3362.6,3361.8,3.6715]
[1735507238702,3.08824494,3362.7,3362.5,0.298]
[1735507238703,2.64125494,3362.7,3362.5,0.298]
[1735507238902,2.64125494,3362.7,3362.6,1.5968]
[1735507240004,0.29799,3362.7,3362.6,1.2988]
[1735507240603,3.2078,3363.0,3362.6,1.2988]
[1735507240799,0.29798,3362.8,3362.7,0.2952995]
[1735507241010,3.2078,3363.0,3362.6,1.2988]
[1735507241210,0.29798,3362.8,3362.7,0.29798]
[1735507242309,0.29799,3362.7,3362.6,1.2988]
[1735507242616,0.29801,3362.4,3362.3,0.4437]
[1735507243106,0.29802,3362.3,3362.2,9.21096707]
[1735507243309,3.00822033,3362.3,3362.2,9.21096707]
[1735507243806,8.00822033,3362.3,3362.2,9.21096707]
[1735507244515,7.71020033,3362.3,3361.6,4.61245285]
[1735507244714,0.29808,3361.7,3361.6,4.61245285]
[1735507246012,0.9164,3361.8,3361.3,5.06395285]
[1735507246206,0.2981,3361.4,3361.3,5.06395285]
[1735507248810,0.2981,3361.4,3361.3,0.4515]
[1735507252807,0.2981,3361.5,3361.3,0.7496]
[1735507253012,0.2981,3361.5,3361.3,0.4515]
[1735507253415,0.2981,3361.5,3361.4,0.2981]
[1735507254114,0.9164,3361.8,3361.3,0.4515]
[1735507254311,0.29809,3361.6,3361.5,0.29809]
[1735507254513,0.29809,3361.6,3361.5,3.2078]
[1735507256419,3.2078,3362.3,3361.5,3.2078]
[1735507256618,0.29808,3361.7,3361.6,0.4607]
[1735507259114,0.29808,3361.7,3361.6,0.75878]
[1735507259316,0.29807,3361.8,3361.7,0.29807]